[Event "Titled Tuesday Blitz November 08 Early 2022"]
[White "Luberanski, Jakub"]
[Black "Jobava, Baadur"]
[WhiteFideId "21830509"]
[BlackFideId "13601520"]
[WhiteElo "2109"]
[BlackElo "2582"]
[Result "0-1"]
[Round "06"]
[TimeControl "180+1"]
[Date "2022.11.09"]
[WhiteClock "0:00:01"]
[BlackClock "0:00:09"]

1. Nf3 {[%clk 0:03:00]}  d5 {[%clk 0:02:56]} 2. g3 {[%clk 0:03:01]}  c6 {[%clk 0:02:55]} 3. Bg2 {[%clk 0:03:01]}  Nf6 {[%clk 0:02:56]} 4. O-O {[%clk 0:03:02]}  Bf5 {[%clk 0:02:57]} 5. d3 {[%clk 0:03:02]}  e6 {[%clk 0:02:57]} 6. Nbd2 {[%clk 0:03:03]}  Be7 {[%clk 0:02:58]} 7. b3 {[%clk 0:03:04]}  O-O {[%clk 0:02:58]} 8. Bb2 {[%clk 0:03:04]}  h6 {[%clk 0:02:58]} 9. c4 {[%clk 0:03:04]}  Bh7 {[%clk 0:02:58]} 10. Rc1 {[%clk 0:03:04]}  a5 {[%clk 0:02:59]} 11. a3 {[%clk 0:03:04]}  Na6 {[%clk 0:02:59]} 12. Rc2 {[%clk 0:03:04]}  Re8 {[%clk 0:03:00]} 13. Qa1 {[%clk 0:03:05]}  Bf8 {[%clk 0:03:00]} 14. Rfc1 {[%clk 0:03:05]}  Nd7 {[%clk 0:03:00]} 15. Ne5 {[%clk 0:03:01]}  Nxe5 {[%clk 0:03:00]} 16. Bxe5 {[%clk 0:03:01]}  Bg6 {[%clk 0:02:55]} 17. h4 {[%clk 0:03:01]}  f6 {[%clk 0:02:55]} 18. Bb2 {[%clk 0:02:59]}  Bf7 {[%clk 0:02:56]} 19. Rd1 {[%clk 0:02:45]}  e5 {[%clk 0:02:55]} 20. cxd5 {[%clk 0:02:45]}  cxd5 {[%clk 0:02:54]} 21. Rdc1 {[%clk 0:02:41]}  Qd7 {[%clk 0:02:49]} 22. Kh2 {[%clk 0:02:28]}  Be6 {[%clk 0:02:49]} 23. Nf1 {[%clk 0:02:05]}  Rac8 {[%clk 0:02:47]} 24. Qb1 {[%clk 0:02:03]}  Nc5 {[%clk 0:02:45]} 25. Bc3 {[%clk 0:01:55]}  d4 {[%clk 0:02:22]} 26. Bxa5 {[%clk 0:01:50]}  Nxb3 {[%clk 0:02:21]} 27. Rxc8 {[%clk 0:01:51]}  Rxc8 {[%clk 0:02:22]} 28. Rxc8 {[%clk 0:01:50]}  Qxc8 {[%clk 0:02:23]} 29. Bb4 {[%clk 0:01:49]}  b5 {[%clk 0:02:11]} 30. Bxf8 {[%clk 0:01:43]}  Qxf8 {[%clk 0:02:12]} 31. Bh3 {[%clk 0:01:42]}  Bf7 {[%clk 0:02:09]} 32. Qb2 {[%clk 0:01:40]}  Qc5 {[%clk 0:02:03]} 33. Bg4 {[%clk 0:01:21]}  Qc3 {[%clk 0:01:58]} 34. Qb1 {[%clk 0:01:16]}  Qc5 {[%clk 0:01:52]} 35. Qb2 {[%clk 0:01:10]}  Kf8 {[%clk 0:01:44]} 36. Bd7 {[%clk 0:00:54]}  Ke7 {[%clk 0:01:34]} 37. Bg4 {[%clk 0:00:50]}  Qc3 {[%clk 0:01:31]} 38. Qb1 {[%clk 0:00:50]}  h5 {[%clk 0:01:25]} 39. Bf3 {[%clk 0:00:48]}  Qc5 {[%clk 0:01:24]} 40. Qb2 {[%clk 0:00:48]}  Qc3 {[%clk 0:01:23]} 41. Qb1 {[%clk 0:00:48]}  Kd6 {[%clk 0:01:24]} 42. Kg1 {[%clk 0:00:48]}  g6 {[%clk 0:01:22]} 43. e3 {[%clk 0:00:39]}  Qc1 {[%clk 0:01:19]} 44. Qa2 {[%clk 0:00:29]}  Be6 {[%clk 0:01:15]} 45. Kg2 {[%clk 0:00:15]}  Nc5 {[%clk 0:01:15]} 46. Qe2 {[%clk 0:00:14]}  Qxa3 {[%clk 0:01:15]} 47. exd4 {[%clk 0:00:14]}  exd4 {[%clk 0:01:16]} 48. Nd2 {[%clk 0:00:12]}  f5 {[%clk 0:01:08]} 49. Nb1 {[%clk 0:00:04]}  Qxd3 {[%clk 0:01:07]} 50. Qb2 {[%clk 0:00:05]}  Bc4 {[%clk 0:01:01]} 51. Na3 {[%clk 0:00:05]}  Bb3 {[%clk 0:00:25]} 52. Be2 {[%clk 0:00:04]}  Bd5+ {[%clk 0:00:23]} 53. Kh2 {[%clk 0:00:03]}  Qe4 {[%clk 0:00:19]} 54. Nxb5+ {[%clk 0:00:04]}  Ke5 {[%clk 0:00:17]} 55. f3 {[%clk 0:00:04]}  Qe3 {[%clk 0:00:17]} 56. f4+ {[%clk 0:00:02]}  Ke6 {[%clk 0:00:10]} 57. Nxd4+ {[%clk 0:00:03]}  Kf7 {[%clk 0:00:10]} 58. Qc2 {[%clk 0:00:01]}  Qf2+ {[%clk 0:00:09]} 0-1


[Site "https://www.chess.com"]

[Event "Titled Tuesday Blitz November 08 Early 2022"]
[White "Mazurkiewicz, Michal"]
[Black "Zaksaite, Salomeja"]
[WhiteFideId "1124943"]
[BlackFideId "12801496"]
[WhiteElo "2063"]
[BlackElo "2079"]
[Result "1-0"]
[Round "06"]
[TimeControl "180+1"]
[Date "2022.11.09"]
[WhiteClock "0:00:10"]
[BlackClock "0:00:02"]

1. e4 {[%clk 0:03:00]}  c5 {[%clk 0:02:58]} 2. Nf3 {[%clk 0:03:01]}  e6 {[%clk 0:02:58]} 3. d3 {[%clk 0:03:00]}  Nc6 {[%clk 0:02:57]} 4. g3 {[%clk 0:03:01]}  g6 {[%clk 0:02:58]} 5. Bg2 {[%clk 0:03:01]}  Bg7 {[%clk 0:02:58]} 6. O-O {[%clk 0:03:01]}  Nge7 {[%clk 0:02:59]} 7. Re1 {[%clk 0:03:01]}  O-O {[%clk 0:02:59]} 8. e5 {[%clk 0:03:02]}  d6 {[%clk 0:02:58]} 9. exd6 {[%clk 0:03:03]}  Qxd6 {[%clk 0:02:58]} 10. Nbd2 {[%clk 0:03:03]}  Nd5 {[%clk 0:02:55]} 11. Ne4 {[%clk 0:02:50]}  Qe7 {[%clk 0:02:54]} 12. c4 {[%clk 0:02:50]}  Nf6 {[%clk 0:02:48]} 13. Bg5 {[%clk 0:02:39]}  h6 {[%clk 0:02:46]} 14. Nxf6+ {[%clk 0:02:39]}  Bxf6 {[%clk 0:02:45]} 15. Bxh6 {[%clk 0:02:40]}  Rd8 {[%clk 0:02:45]} 16. Qe2 {[%clk 0:02:35]}  Bd7 {[%clk 0:02:16]} 17. Bf4 {[%clk 0:02:35]}  Rac8 {[%clk 0:02:10]} 18. Rad1 {[%clk 0:02:34]}  Qf8 {[%clk 0:01:53]} 19. h4 {[%clk 0:02:27]}  Qg7 {[%clk 0:01:53]} 20. Ne5 {[%clk 0:02:28]}  Be8 {[%clk 0:01:46]} 21. b3 {[%clk 0:02:05]}  Nd4 {[%clk 0:01:43]} 22. Qg4 {[%clk 0:02:05]}  b5 {[%clk 0:01:30]} 23. h5 {[%clk 0:02:01]}  g5 {[%clk 0:01:18]} 24. Bc1 {[%clk 0:01:31]}  Bxe5 {[%clk 0:01:16]} 25. h6 {[%clk 0:01:30]}  f5 {[%clk 0:00:39]} 26. hxg7 {[%clk 0:01:28]}  fxg4 {[%clk 0:00:37]} 27. Rxe5 {[%clk 0:01:28]}  bxc4 {[%clk 0:00:35]} 28. Bxg5 {[%clk 0:01:20]}  Rd6 {[%clk 0:00:20]} 29. dxc4 {[%clk 0:01:19]}  Ne2+ {[%clk 0:00:16]} 30. Rxe2 {[%clk 0:01:20]}  Rxd1+ {[%clk 0:00:16]} 31. Kh2 {[%clk 0:01:20]}  Kxg7 {[%clk 0:00:15]} 32. Rxe6 {[%clk 0:01:17]}  Bf7 {[%clk 0:00:13]} 33. Bf6+ {[%clk 0:01:11]}  Kf8 {[%clk 0:00:04]} 34. Ra6 {[%clk 0:01:06]}  Rc7 {[%clk 0:00:03]} 35. Be4 {[%clk 0:00:54]}  Be8 {[%clk 0:00:02]} 36. Bf5 {[%clk 0:00:25]}  Rf7 {[%clk 0:00:02]} 37. Bxg4 {[%clk 0:00:16]}  Rd2 {[%clk 0:00:02]} 38. Kg2 {[%clk 0:00:11]}  Rc2 {[%clk 0:00:02]} 39. Bh5 {[%clk 0:00:09]}  Rxf6 {[%clk 0:00:02]} 40. Rxf6+ {[%clk 0:00:09]}  Kg7 {[%clk 0:00:02]} 41. Rf5 {[%clk 0:00:07]}  Bxh5 {[%clk 0:00:01]} 42. Rxh5 {[%clk 0:00:08]}  Rxa2 {[%clk 0:00:02]} 43. Rxc5 {[%clk 0:00:08]}  Rb2 {[%clk 0:00:02]} 44. Rb5 {[%clk 0:00:09]}  Kf6 {[%clk 0:00:02]} 45. c5 {[%clk 0:00:09]}  Rc2 {[%clk 0:00:02]} 46. b4 {[%clk 0:00:10]}  Ke6 {[%clk 0:00:02]} 47. Rb7 {[%clk 0:00:10]}  Kd5 {[%clk 0:00:02]} 48. Rxa7 {[%clk 0:00:10]} 1-0


[Site "https://www.chess.com"]

[Event "Titled Tuesday Blitz November 08 Early 2022"]
[White "Mazzilli, Piero"]
[Black "Sernecki, Franciszek"]
[WhiteFideId "807087"]
[BlackFideId "1169297"]
[WhiteElo "2277"]
[BlackElo "2210"]
[Result "1-0"]
[Round "06"]
[TimeControl "180+1"]
[Date "2022.11.09"]
[WhiteClock "0:01:36"]
[BlackClock "0:01:38"]

1. e4 {[%clk 0:02:29]}  e6 {[%clk 0:01:53]} 2. Nf3 {[%clk 0:02:27]}  d5 {[%clk 0:01:54]} 3. Nc3 {[%clk 0:02:26]}  Bb4 {[%clk 0:01:53]} 4. exd5 {[%clk 0:02:23]}  exd5 {[%clk 0:01:54]} 5. d4 {[%clk 0:02:23]}  Nf6 {[%clk 0:01:53]} 6. Bd3 {[%clk 0:02:23]}  O-O {[%clk 0:01:53]} 7. O-O {[%clk 0:02:23]}  Bg4 {[%clk 0:01:53]} 8. Bg5 {[%clk 0:02:23]}  c6 {[%clk 0:01:53]} 9. h3 {[%clk 0:02:22]}  Bh5 {[%clk 0:01:52]} 10. g4 {[%clk 0:02:19]}  Bg6 {[%clk 0:01:49]} 11. Ne5 {[%clk 0:02:19]}  Bxd3 {[%clk 0:01:48]} 12. Qxd3 {[%clk 0:02:19]}  h6 {[%clk 0:01:48]} 13. Bh4 {[%clk 0:02:18]}  g5 {[%clk 0:01:47]} 14. Bg3 {[%clk 0:02:15]}  Bxc3 {[%clk 0:01:48]} 15. bxc3 {[%clk 0:02:10]}  Nbd7 {[%clk 0:01:48]} 16. f3 {[%clk 0:02:07]}  Re8 {[%clk 0:01:47]} 17. Rfe1 {[%clk 0:02:07]}  Qa5 {[%clk 0:01:45]} 18. Re2 {[%clk 0:02:05]}  Re6 {[%clk 0:01:44]} 19. Rae1 {[%clk 0:02:00]}  Rae8 {[%clk 0:01:43]} 20. Nxd7 {[%clk 0:01:55]}  Nxd7 {[%clk 0:01:38]} 21. Rxe6 {[%clk 0:01:54]}  Rxe6 {[%clk 0:01:39]} 22. Rxe6 {[%clk 0:01:52]}  fxe6 {[%clk 0:01:40]} 23. Qg6+ {[%clk 0:01:50]}  Kh8 {[%clk 0:01:39]} 24. Qxh6+ {[%clk 0:01:36]}  Kg8 {[%clk 0:01:38]} 25. Qg6+ {[%clk 0:01:37]}  Kh8 {[%clk 0:01:38]} 26. Qe8+ {[%clk 0:01:36]} 1-0


[Site "https://www.chess.com"]

[Event "Titled Tuesday Blitz November 08 Early 2022"]
[White "Melikyan, Gnel"]
[Black "Rakhmanov, Aleksandr"]
[WhiteFideId "54109990"]
[BlackFideId "4173708"]
[WhiteElo "2138"]
[BlackElo "2530"]
[Result "0-1"]
[Round "06"]
[TimeControl "180+1"]
[Date "2022.11.08"]
[WhiteClock "0:00:53"]
[BlackClock "0:01:10"]

1. e4 {[%clk 0:02:59]}  c5 {[%clk 0:02:59]} 2. Nf3 {[%clk 0:02:59]}  Nf6 {[%clk 0:02:59]} 3. e5 {[%clk 0:02:58]}  Nd5 {[%clk 0:02:59]} 4. Nc3 {[%clk 0:02:58]}  Nxc3 {[%clk 0:02:59]} 5. dxc3 {[%clk 0:02:59]}  Nc6 {[%clk 0:02:59]} 6. Bf4 {[%clk 0:02:58]}  Qb6 {[%clk 0:03:00]} 7. b3 {[%clk 0:02:55]}  Qc7 {[%clk 0:03:00]} 8. Qd2 {[%clk 0:02:52]}  e6 {[%clk 0:03:00]} 9. O-O-O {[%clk 0:02:50]}  a6 {[%clk 0:02:59]} 10. Bd3 {[%clk 0:02:49]}  h6 {[%clk 0:02:58]} 11. h4 {[%clk 0:02:46]}  b5 {[%clk 0:02:58]} 12. h5 {[%clk 0:02:42]}  c4 {[%clk 0:02:57]} 13. Be4 {[%clk 0:02:41]}  Bb7 {[%clk 0:02:57]} 14. Kb1 {[%clk 0:02:38]}  Ne7 {[%clk 0:02:55]} 15. Bxb7 {[%clk 0:02:32]}  Qxb7 {[%clk 0:02:56]} 16. Nd4 {[%clk 0:02:07]}  Nd5 {[%clk 0:02:51]} 17. Be3 {[%clk 0:01:53]}  Rc8 {[%clk 0:02:11]} 18. Ne2 {[%clk 0:01:52]}  b4 {[%clk 0:02:04]} 19. cxb4 {[%clk 0:01:48]}  Bxb4 {[%clk 0:01:46]} 20. Qc1 {[%clk 0:01:26]}  a5 {[%clk 0:01:37]} 21. Nf4 {[%clk 0:01:14]}  Nc3+ {[%clk 0:01:27]} 22. Ka1 {[%clk 0:01:14]}  cxb3 {[%clk 0:01:11]} 23. axb3 {[%clk 0:01:09]}  a4 {[%clk 0:01:10]} 24. Qb2 {[%clk 0:00:53]} 0-1


[Site "https://www.chess.com"]

[Event "Titled Tuesday Blitz November 08 Early 2022"]
[White "Mihailidis, Anastasios"]
[Black "Parpiev, Isaak"]
[WhiteFideId "4205588"]
[BlackFideId "34281576"]
[WhiteElo "2312"]
[BlackElo "2094"]
[Result "1-0"]
[Round "06"]
[TimeControl "180+1"]
[Date "2022.11.09"]
[WhiteClock "0:01:00"]
[BlackClock "0:00:26"]

1. e4 {[%clk 0:03:00]}  e5 {[%clk 0:02:56]} 2. Nf3 {[%clk 0:03:00]}  Nc6 {[%clk 0:02:56]} 3. d4 {[%clk 0:02:59]}  exd4 {[%clk 0:02:56]} 4. Nxd4 {[%clk 0:03:00]}  Nf6 {[%clk 0:02:56]} 5. Nc3 {[%clk 0:02:59]}  Bb4 {[%clk 0:02:53]} 6. Nxc6 {[%clk 0:02:59]}  bxc6 {[%clk 0:02:53]} 7. Bd3 {[%clk 0:03:00]}  d5 {[%clk 0:02:54]} 8. exd5 {[%clk 0:02:59]}  O-O {[%clk 0:02:54]} 9. O-O {[%clk 0:02:59]}  cxd5 {[%clk 0:02:54]} 10. Bg5 {[%clk 0:02:58]}  c6 {[%clk 0:02:54]} 11. Qf3 {[%clk 0:02:57]}  h6 {[%clk 0:02:53]} 12. Bxf6 {[%clk 0:02:56]}  Qxf6 {[%clk 0:02:54]} 13. Qxf6 {[%clk 0:02:56]}  gxf6 {[%clk 0:02:55]} 14. Ne2 {[%clk 0:02:56]}  Rb8 {[%clk 0:02:53]} 15. Nd4 {[%clk 0:02:51]}  Bd7 {[%clk 0:02:52]} 16. Bf5 {[%clk 0:02:42]}  Bxf5 {[%clk 0:02:45]} 17. Nxf5 {[%clk 0:02:43]}  Kh7 {[%clk 0:02:42]} 18. c3 {[%clk 0:02:33]}  Bc5 {[%clk 0:02:39]} 19. b3 {[%clk 0:02:32]}  Rfe8 {[%clk 0:02:36]} 20. Rfe1 {[%clk 0:02:30]}  Bb6 {[%clk 0:02:29]} 21. Nd6 {[%clk 0:02:26]}  Rxe1+ {[%clk 0:02:24]} 22. Rxe1 {[%clk 0:02:26]}  Kg6 {[%clk 0:02:25]} 23. g4 {[%clk 0:02:02]}  Kg5 {[%clk 0:02:04]} 24. h3 {[%clk 0:01:59]}  Kf4 {[%clk 0:01:52]} 25. Kg2 {[%clk 0:01:55]}  Rg8 {[%clk 0:01:38]} 26. Nxf7 {[%clk 0:01:52]}  h5 {[%clk 0:01:35]} 27. f3 {[%clk 0:01:47]}  f5 {[%clk 0:01:18]} 28. Nh6 {[%clk 0:01:28]}  Rh8 {[%clk 0:00:52]} 29. Nxf5 {[%clk 0:01:24]}  hxg4 {[%clk 0:00:52]} 30. hxg4 {[%clk 0:01:24]}  a5 {[%clk 0:00:34]} 31. Ng7 {[%clk 0:01:23]}  Kg5 {[%clk 0:00:32]} 32. Re6 {[%clk 0:01:17]}  Bc7 {[%clk 0:00:29]} 33. Nh5 {[%clk 0:01:08]}  Rh6 {[%clk 0:00:26]} 34. f4+ {[%clk 0:01:00]} 1-0


[Site "https://www.chess.com"]

[Event "Titled Tuesday Blitz November 08 Early 2022"]
[White "Mirzoev, Azer"]
[Black "Balkum, Alexander"]
[WhiteFideId "13400304"]
[BlackFideId "2005069"]
[WhiteElo "2525"]
[BlackElo "2354"]
[Result "1-0"]
[Round "06"]
[TimeControl "180+1"]
[Date "2022.11.09"]
[WhiteClock "0:01:46"]
[BlackClock "0:00:01"]

1. e4 {[%clk 0:03:00]}  c5 {[%clk 0:02:59]} 2. Nc3 {[%clk 0:02:59]}  Nc6 {[%clk 0:02:58]} 3. g3 {[%clk 0:02:59]}  g6 {[%clk 0:02:58]} 4. Bg2 {[%clk 0:02:59]}  Bg7 {[%clk 0:02:59]} 5. d3 {[%clk 0:03:00]}  d6 {[%clk 0:02:58]} 6. h4 {[%clk 0:03:00]}  e6 {[%clk 0:02:50]} 7. h5 {[%clk 0:03:00]}  Nd4 {[%clk 0:02:49]} 8. Nge2 {[%clk 0:02:58]}  Ne7 {[%clk 0:02:32]} 9. Nxd4 {[%clk 0:02:53]}  cxd4 {[%clk 0:02:32]} 10. Ne2 {[%clk 0:02:49]}  Qa5+ {[%clk 0:02:07]} 11. Bd2 {[%clk 0:02:49]}  Qb6 {[%clk 0:02:08]} 12. c3 {[%clk 0:02:45]}  Nc6 {[%clk 0:01:51]} 13. Qc2 {[%clk 0:02:23]}  Bd7 {[%clk 0:01:44]} 14. O-O-O {[%clk 0:02:17]}  Rc8 {[%clk 0:01:17]} 15. c4 {[%clk 0:02:16]}  Nb4 {[%clk 0:01:06]} 16. Qb3 {[%clk 0:02:15]}  a5 {[%clk 0:00:45]} 17. Kb1 {[%clk 0:02:11]}  Qa7 {[%clk 0:00:33]} 18. Bxb4 {[%clk 0:02:00]}  axb4 {[%clk 0:00:32]} 19. Qxb4 {[%clk 0:02:00]}  Rc6 {[%clk 0:00:28]} 20. Nc1 {[%clk 0:01:56]}  Rb6 {[%clk 0:00:23]} 21. Qd2 {[%clk 0:01:55]}  e5 {[%clk 0:00:18]} 22. f4 {[%clk 0:01:54]}  Bg4 {[%clk 0:00:17]} 23. Rdf1 {[%clk 0:01:53]}  f6 {[%clk 0:00:11]} 24. Bf3 {[%clk 0:01:50]}  Bxf3 {[%clk 0:00:10]} 25. Rxf3 {[%clk 0:01:49]}  Ke7 {[%clk 0:00:02]} 26. Rff1 {[%clk 0:01:48]}  h6 {[%clk 0:00:01]} 27. hxg6 {[%clk 0:01:46]} 1-0


[Site "https://www.chess.com"]

[Event "Titled Tuesday Blitz November 08 Early 2022"]
[White "Miszler, Levente"]
[Black "Prohorov, Olexandr"]
[WhiteFideId "763276"]
[BlackFideId "14105578"]
[WhiteElo "2176"]
[BlackElo "1993"]
[Result "0-1"]
[Round "06"]
[TimeControl "180+1"]
[Date "2022.11.09"]
[WhiteClock "0:00:02"]
[BlackClock "0:00:06"]

1. Nf3 {[%clk 0:03:00]}  g6 {[%clk 0:02:08]} 2. c4 {[%clk 0:02:59]}  Bg7 {[%clk 0:02:05]} 3. g3 {[%clk 0:02:59]}  c5 {[%clk 0:02:04]} 4. Bg2 {[%clk 0:02:59]}  Nc6 {[%clk 0:02:05]} 5. Nc3 {[%clk 0:03:00]}  Nf6 {[%clk 0:02:04]} 6. O-O {[%clk 0:02:59]}  O-O {[%clk 0:02:04]} 7. d3 {[%clk 0:03:00]}  a6 {[%clk 0:02:00]} 8. a3 {[%clk 0:03:00]}  Rb8 {[%clk 0:02:01]} 9. Rb1 {[%clk 0:02:58]}  b5 {[%clk 0:02:01]} 10. cxb5 {[%clk 0:02:59]}  axb5 {[%clk 0:02:02]} 11. b4 {[%clk 0:02:59]}  cxb4 {[%clk 0:02:01]} 12. axb4 {[%clk 0:03:00]}  d5 {[%clk 0:01:59]} 13. Bf4 {[%clk 0:03:00]}  Rb6 {[%clk 0:01:56]} 14. Qb3 {[%clk 0:02:46]}  e6 {[%clk 0:01:49]} 15. Rfc1 {[%clk 0:02:45]}  Nh5 {[%clk 0:01:45]} 16. Bd2 {[%clk 0:02:37]}  Qd6 {[%clk 0:01:43]} 17. Rc2 {[%clk 0:02:26]}  Bb7 {[%clk 0:01:36]} 18. Na2 {[%clk 0:02:19]}  Nf6 {[%clk 0:01:29]} 19. Rbc1 {[%clk 0:02:16]}  Nd7 {[%clk 0:01:24]} 20. Rc5 {[%clk 0:01:47]}  Ra8 {[%clk 0:01:12]} 21. Bf4 {[%clk 0:01:43]}  Qe7 {[%clk 0:01:03]} 22. Bc7 {[%clk 0:01:26]}  Rba6 {[%clk 0:01:02]} 23. R5c2 {[%clk 0:01:19]}  Nd4 {[%clk 0:00:55]} 24. Nxd4 {[%clk 0:01:17]}  Bxd4 {[%clk 0:00:55]} 25. Nc3 {[%clk 0:01:14]}  Ra3 {[%clk 0:00:52]} 26. Qb1 {[%clk 0:01:07]}  Bxc3 {[%clk 0:00:45]} 27. Rxc3 {[%clk 0:01:07]}  Qf6 {[%clk 0:00:33]} 28. Rxa3 {[%clk 0:00:57]}  Rxa3 {[%clk 0:00:34]} 29. Ba5 {[%clk 0:00:56]}  Ne5 {[%clk 0:00:26]} 30. Qc2 {[%clk 0:00:52]}  Ng4 {[%clk 0:00:24]} 31. Bf3 {[%clk 0:00:49]}  Ne5 {[%clk 0:00:23]} 32. Bg2 {[%clk 0:00:33]}  Ng4 {[%clk 0:00:16]} 33. Rf1 {[%clk 0:00:33]}  Qe7 {[%clk 0:00:04]} 34. h3 {[%clk 0:00:30]}  Ne5 {[%clk 0:00:03]} 35. Rc1 {[%clk 0:00:30]}  Nc6 {[%clk 0:00:03]} 36. Qb2 {[%clk 0:00:24]}  Ra4 {[%clk 0:00:03]} 37. Bb6 {[%clk 0:00:18]}  Rxb4 {[%clk 0:00:02]} 38. Qc2 {[%clk 0:00:16]}  Ra4 {[%clk 0:00:02]} 39. Bc5 {[%clk 0:00:16]}  Qd7 {[%clk 0:00:02]} 40. Rb1 {[%clk 0:00:13]}  Ra8 {[%clk 0:00:02]} 41. Rxb5 {[%clk 0:00:09]}  Nd4 {[%clk 0:00:02]} 42. Qb2 {[%clk 0:00:09]}  Nxb5 {[%clk 0:00:02]} 43. Qb4 {[%clk 0:00:06]}  Bc6 {[%clk 0:00:03]} 44. e3 {[%clk 0:00:06]}  Ra1+ {[%clk 0:00:03]} 45. Kh2 {[%clk 0:00:05]}  h5 {[%clk 0:00:04]} 46. d4 {[%clk 0:00:04]}  h4 {[%clk 0:00:05]} 47. gxh4 {[%clk 0:00:02]}  Ra8 {[%clk 0:00:06]} 0-1


[Site "https://www.chess.com"]

[Event "Titled Tuesday Blitz November 08 Early 2022"]
[White "Mosadeghpour, Masoud"]
[Black "Tarigan, Gilbert Elroy"]
[WhiteFideId "12519278"]
[BlackFideId "7108133"]
[WhiteElo "2393"]
[BlackElo "2284"]
[Result "1-0"]
[Round "06"]
[TimeControl "180+1"]
[Date "2022.11.08"]
[WhiteClock "0:01:45"]
[BlackClock "0:00:45"]

1. e4 {[%clk 0:03:00]}  c5 {[%clk 0:02:56]} 2. d4 {[%clk 0:02:59]}  cxd4 {[%clk 0:02:56]} 3. c3 {[%clk 0:02:58]}  d5 {[%clk 0:02:56]} 4. exd5 {[%clk 0:02:58]}  Qxd5 {[%clk 0:02:57]} 5. cxd4 {[%clk 0:02:58]}  Nc6 {[%clk 0:02:53]} 6. Nf3 {[%clk 0:02:58]}  e5 {[%clk 0:02:54]} 7. Nc3 {[%clk 0:02:57]}  Bb4 {[%clk 0:02:54]} 8. Bd2 {[%clk 0:02:57]}  Bxc3 {[%clk 0:02:53]} 9. Bxc3 {[%clk 0:02:56]}  e4 {[%clk 0:02:28]} 10. Nd2 {[%clk 0:02:52]}  Nf6 {[%clk 0:02:16]} 11. Bc4 {[%clk 0:02:51]}  Qg5 {[%clk 0:02:15]} 12. O-O {[%clk 0:02:50]}  Bh3 {[%clk 0:02:15]} 13. g3 {[%clk 0:02:46]}  Bxf1 {[%clk 0:02:14]} 14. Nxf1 {[%clk 0:02:46]}  O-O {[%clk 0:02:14]} 15. d5 {[%clk 0:02:45]}  Rad8 {[%clk 0:02:14]} 16. Ne3 {[%clk 0:02:43]}  Ne5 {[%clk 0:02:14]} 17. h4 {[%clk 0:02:43]}  Qxe3 {[%clk 0:01:55]} 18. fxe3 {[%clk 0:02:41]}  Nxc4 {[%clk 0:01:55]} 19. Bxf6 {[%clk 0:02:37]}  gxf6 {[%clk 0:01:45]} 20. Qg4+ {[%clk 0:02:35]}  Kh8 {[%clk 0:01:46]} 21. Qxe4 {[%clk 0:02:36]}  Nd6 {[%clk 0:01:44]} 22. Qd4 {[%clk 0:02:34]}  Rfe8 {[%clk 0:01:38]} 23. Qxf6+ {[%clk 0:02:33]}  Kg8 {[%clk 0:01:39]} 24. Rf1 {[%clk 0:02:31]}  Rd7 {[%clk 0:01:34]} 25. Qg5+ {[%clk 0:02:29]}  Kf8 {[%clk 0:01:32]} 26. Qh6+ {[%clk 0:02:22]}  Kg8 {[%clk 0:01:27]} 27. Qg5+ {[%clk 0:02:20]}  Kf8 {[%clk 0:01:26]} 28. Rf6 {[%clk 0:02:19]}  Ne4 {[%clk 0:01:23]} 29. Qh6+ {[%clk 0:02:19]}  Kg8 {[%clk 0:01:19]} 30. Rf4 {[%clk 0:02:18]}  f5 {[%clk 0:01:15]} 31. Rxf5 {[%clk 0:02:17]}  Rg7 {[%clk 0:01:16]} 32. d6 {[%clk 0:02:00]}  Rxg3+ {[%clk 0:01:03]} 33. Kh2 {[%clk 0:01:58]}  Rg6 {[%clk 0:01:03]} 34. d7 {[%clk 0:01:54]}  Rd8 {[%clk 0:01:01]} 35. Rf8+ {[%clk 0:01:54]}  Rxf8 {[%clk 0:01:01]} 36. Qxf8+ {[%clk 0:01:55]}  Kxf8 {[%clk 0:01:02]} 37. d8=Q+ {[%clk 0:01:56]}  Kf7 {[%clk 0:00:57]} 38. Qc7+ {[%clk 0:01:45]}  Kf6 {[%clk 0:00:45]} 39. Qf4+ {[%clk 0:01:45]} 1-0


[Site "https://www.chess.com"]

[Event "Titled Tuesday Blitz November 08 Early 2022"]
[White "Noboa Silva, Kevin"]
[Black "Akbas, Umut Ata"]
[WhiteFideId "3618471"]
[BlackFideId "44572646"]
[WhiteElo "2178"]
[BlackElo "2192"]
[Result "1-0"]
[Round "06"]
[TimeControl "180+1"]
[Date "2022.11.09"]
[WhiteClock "0:00:29"]
[BlackClock "0:00:38"]

1. d4 {[%clk 0:03:00]}  g6 {[%clk 0:02:45]} 2. e4 {[%clk 0:02:57]}  Bg7 {[%clk 0:02:46]} 3. Nf3 {[%clk 0:02:57]}  c6 {[%clk 0:02:46]} 4. h3 {[%clk 0:02:53]}  d5 {[%clk 0:02:45]} 5. e5 {[%clk 0:02:53]}  h5 {[%clk 0:02:44]} 6. c3 {[%clk 0:02:52]}  Nh6 {[%clk 0:02:43]} 7. Bf4 {[%clk 0:02:52]}  Nf5 {[%clk 0:02:42]} 8. Bd3 {[%clk 0:02:48]}  c5 {[%clk 0:02:41]} 9. Qd2 {[%clk 0:02:41]}  Nc6 {[%clk 0:02:40]} 10. Bb5 {[%clk 0:02:34]}  Qb6 {[%clk 0:02:38]} 11. Bxc6+ {[%clk 0:02:31]}  Qxc6 {[%clk 0:02:39]} 12. O-O {[%clk 0:02:29]}  Be6 {[%clk 0:02:28]} 13. Na3 {[%clk 0:02:27]}  O-O-O {[%clk 0:02:24]} 14. Nc2 {[%clk 0:02:25]}  c4 {[%clk 0:02:19]} 15. b3 {[%clk 0:02:21]}  f6 {[%clk 0:02:19]} 16. bxc4 {[%clk 0:02:16]}  dxc4 {[%clk 0:02:16]} 17. Nb4 {[%clk 0:02:14]}  Qb5 {[%clk 0:02:11]} 18. a4 {[%clk 0:02:12]}  Qa5 {[%clk 0:02:11]} 19. Rfe1 {[%clk 0:02:09]}  Rhe8 {[%clk 0:02:05]} 20. g4 {[%clk 0:02:03]}  hxg4 {[%clk 0:02:00]} 21. hxg4 {[%clk 0:02:04]}  Nh4 {[%clk 0:01:46]} 22. Nxh4 {[%clk 0:02:00]}  g5 {[%clk 0:01:43]} 23. exf6 {[%clk 0:00:56]}  exf6 {[%clk 0:01:44]} 24. Rxe6 {[%clk 0:00:55]}  Rxe6 {[%clk 0:01:44]} 25. Nf5 {[%clk 0:00:55]}  gxf4 {[%clk 0:01:45]} 26. Nxg7 {[%clk 0:00:55]}  Qg5 {[%clk 0:01:46]} 27. Nxe6 {[%clk 0:00:52]}  Qxg4+ {[%clk 0:01:45]} 28. Kf1 {[%clk 0:00:53]}  Qh3+ {[%clk 0:01:31]} 29. Ke1 {[%clk 0:00:52]}  Qh1+ {[%clk 0:00:51]} 30. Ke2 {[%clk 0:00:52]}  Qh5+ {[%clk 0:00:51]} 31. f3 {[%clk 0:00:48]}  Rg8 {[%clk 0:00:48]} 32. Rf1 {[%clk 0:00:37]}  Rg2+ {[%clk 0:00:39]} 33. Rf2 {[%clk 0:00:37]}  Rxf2+ {[%clk 0:00:39]} 34. Kxf2 {[%clk 0:00:37]}  Qh2+ {[%clk 0:00:40]} 35. Ke1 {[%clk 0:00:37]}  Qg1+ {[%clk 0:00:40]} 36. Ke2 {[%clk 0:00:37]}  Qg2+ {[%clk 0:00:41]} 37. Kd1 {[%clk 0:00:34]}  Qxf3+ {[%clk 0:00:40]} 38. Kc1 {[%clk 0:00:32]}  Qh1+ {[%clk 0:00:37]} 39. Qd1 {[%clk 0:00:29]}  f3 {[%clk 0:00:38]} 40. Qxh1 {[%clk 0:00:29]} 1-0


[Site "https://www.chess.com"]